[Event "Championnat de France Universitaire Nan"]
[Site "Nancy, France"]
[Date "2020.02.08"]
[Round "3.5"]
[White "Defromont, Benjamin"]
[Black "Thiercelin, Jerome"]
[Result "1-0"]
[WhiteElo "2263"]
[BlackElo "2013"]
[PlyCount "104"]
[EventDate "2020.??.??"]
[TimeControl "15+5"]
[WhiteClock "0:01:13"]
[BlackClock "0:00:11"]

1. e4 {[%emt 0:00:02]} c5 {[%emt 0:00:03]} 2. Nf3 {[%emt 0:00:03]} e6 {[%emt 0:
00:03]} 3. g3 {[%emt 0:00:46]} Nc6 {[%emt 0:01:06]} 4. Bg2 {[%emt 0:00:05]} Nf6
{[%emt 0:00:15]} 5. Qe2 {[%emt 0:01:13]} d5 {[%emt 0:01:17]} 6. exd5 {[%emt 0:
01:08]} Nxd5 {[%emt 0:00:18]} 7. O-O {[%emt 0:00:17]} Be7 {[%emt 0:00:10]} 8.
d3 {[%emt 0:01:37]} O-O {[%emt 0:00:09]} 9. Nbd2 {[%emt 0:00:03]} Nd4 {[%emt 0:
01:42]} 10. Nxd4 {[%emt 0:00:13]} cxd4 {[%emt 0:00:05]} 11. Nf3 {[%emt 0:01:34]
} Bf6 {[%emt 0:00:10]} 12. h4 {[%emt 0:00:09]} h6 {[%emt 0:02:00]} 13. Nh2 {
[%emt 0:00:51]} e5 {[%emt 0:00:43]} 14. Ng4 {[%emt 0:00:15]} Bxg4 {[%emt 0:00:
09]} 15. Qxg4 {[%emt 0:00:02]} Nb4 {[%emt 0:03:16]} 16. Bd2 {[%emt 0:02:52]}
Nc6 {[%emt 0:00:38]} 17. Be4 {[%emt 0:00:25]} Re8 {[%emt 0:01:30]} 18. Bxh6 {
[%emt 0:00:22]} Ne7 {[%emt 0:00:19]} 19. Bd2 {[%emt 0:01:23]} Qc8 {[%emt 0:00:
30]} 20. Qxc8 {[%emt 0:00:09]} Raxc8 {[%emt 0:00:03]} 21. c4 {[%emt 0:00:04]}
dxc3 {[%emt 0:00:20]} 22. bxc3 {[%emt 0:00:03]} b6 {[%emt 0:00:14]} 23. a4 {
[%emt 0:00:01]} Nc6 {[%emt 0:00:05]} 24. Kg2 {[%emt 0:00:22]} Red8 {[%emt 0:00:
07]} 25. Kf3 {[%emt 0:00:17]} Na5 {[%emt 0:00:13]} 26. Rfb1 {[%emt 0:00:05]}
Rc7 {[%emt 0:00:21]} 27. Ke2 {[%emt 0:00:06]} Nb7 {[%emt 0:00:21]} 28. h5 {
[%emt 0:00:35]} Nc5 {[%emt 0:00:07]} 29. Bf5 {[%emt 0:00:02]} Rc6 {[%emt 0:00:
29]} 30. Be3 {[%emt 0:00:30]} Be7 {[%emt 0:00:22]} 31. a5 {[%emt 0:00:07]} g6 {
[%emt 0:00:03]} 32. hxg6 {[%emt 0:00:16]} fxg6 {[%emt 0:00:01]} 33. Bxc5 {
[%emt 0:00:02]} Bxc5 {[%emt 0:00:10]} 34. Be4 {[%emt 0:00:09]} Rcd6 {[%emt 0:
00:02]} 35. axb6 {[%emt 0:00:05]} axb6 {[%emt 0:00:01]} 36. Ra7 {[%emt 0:00:08]
} R6d7 {[%emt 0:00:04]} 37. Rba1 {[%emt 0:00:06]} Kg7 {[%emt 0:00:04]} 38. R7a6
{[%emt 0:00:23]} Rf8 {[%emt 0:00:08]} 39. f3 {[%emt 0:00:02]} Rh8 {[%emt 0:00:
02]} 40. Ra7 {[%emt 0:00:14]} Rh2+ {[%emt 0:00:27]} 41. Kd1 {[%emt 0:00:04]}
Rh1+ {[%emt 0:00:03]} 42. Kc2 {[%emt 0:00:04]} Rxa7 {[%emt 0:00:19]} 43. Rxa7+
{[%emt 0:00:01]} Kf6 {[%emt 0:00:01]} 44. Rc7 {[%emt 0:00:06]} Rh6 {[%emt 0:00:
11]} 45. Rc6+ {[%emt 0:00:08]} Kf7 {[%emt 0:00:07]} 46. Bd5+ {[%emt 0:00:06]}
Kg7 {[%emt 0:00:01]} 47. Re6 {[%emt 0:00:04]} Rh2+ {[%emt 0:00:01]} 48. Kb3 {
[%emt 0:00:02]} Rh5 {[%emt 0:00:04]} 49. g4 {[%emt 0:00:07]} Rh1 {[%emt 0:00:
12]} 50. Rxe5 {[%emt 0:00:07]} Ra1 {[%emt 0:00:06]} 51. Re6 {[%emt 0:00:07]}
Ra3+ {[%emt 0:00:03]} 52. Kc2 {[%emt 0:00:05]} g5 {[%emt 0:00:29]} 1-0

[Event "Championnat de France Universitaire Nan"]
[Site "Nancy, France"]
[Date "2020.02.08"]
[Round "3.6"]
[White "Budak, Rewi"]
[Black "Bedini, Lucas"]
[Result "1-0"]
[WhiteElo "2079"]
[BlackElo "1932"]
[PlyCount "71"]
[EventDate "2020.??.??"]
[TimeControl "15+5"]
[WhiteClock "0:00:46"]
[BlackClock "0:05:00"]

1. e4 {[%emt 0:00:00]} e5 {[%emt 0:00:03]} 2. Bc4 {[%emt 0:00:02]} Nf6 {[%emt
0:00:02]} 3. d4 {[%emt 0:00:01]} d6 {[%emt 0:00:15]} 4. dxe5 {[%emt 0:00:21]}
dxe5 {[%emt 0:00:05]} 5. Bxf7+ {[%emt 0:00:03]} Ke7 {[%emt 0:00:00]} 6. Qxd8+ {
[%emt 0:00:05]} Kxd8 {[%emt 0:00:00]} 7. Nd2 {[%emt 0:00:15]} Nc6 {[%emt 0:00:
05]} 8. f3 {[%emt 0:02:30]} Nd4 {[%emt 0:00:54]} 9. Kd1 {[%emt 0:01:02]} Bc5 {
[%emt 0:00:45]} 10. a4 {[%emt 0:00:54]} Ke7 {[%emt 0:00:15]} 11. Bc4 {[%emt 0:
00:33]} Rd8 {[%emt 0:01:22]} 12. c3 {[%emt 0:00:21]} Ne6 {[%emt 0:02:03]} 13.
Ne2 {[%emt 0:00:12]} Be3 {[%emt 0:00:17]} 14. Kc2 {[%emt 0:00:04]} c6 {[%emt 0:
00:59]} 15. b4 {[%emt 0:00:50]} Bd7 {[%emt 0:00:30]} 16. Nb3 {[%emt 0:00:16]}
Bxc1 {[%emt 0:00:15]} 17. Nexc1 {[%emt 0:02:08]} b5 {[%emt 0:00:08]} 18. axb5 {
[%emt 0:02:50]} cxb5 {[%emt 0:00:01]} 19. Bf1 {[%emt 0:00:05]} Ne8 {[%emt 0:00:
29]} 20. Nd3 {[%emt 0:00:06]} Kf6 {[%emt 0:00:04]} 21. Ndc5 {[%emt 0:00:29]}
Nd6 {[%emt 0:00:04]} 22. Ra6 {[%emt 0:00:17]} Bc8 {[%emt 0:00:49]} 23. Ra5 {
[%emt 0:01:16]} Nc4 {[%emt 0:00:24]} 24. Bxc4 {[%emt 0:00:14]} bxc4 {[%emt 0:
00:02]} 25. Nd2 {[%emt 0:00:04]} Nf4 {[%emt 0:00:28]} 26. g3 {[%emt 0:00:08]}
Ng2 {[%emt 0:00:56]} 27. Nxc4 {[%emt 0:00:06]} Bh3 {[%emt 0:00:10]} 28. Ra6+ {
[%emt 0:00:12]} Kg5 {[%emt 0:00:08]} 29. Kb3 {[%emt 0:00:25]} Rac8 {[%emt 0:00:
36]} 30. Rxa7 {[%emt 0:00:15]} Rxc5 {[%emt 0:00:03]} 31. bxc5 {[%emt 0:00:01]}
Be6 {[%emt 0:00:01]} 32. Kb4 {[%emt 0:00:12]} Rd3 {[%emt 0:00:37]} 33. Nxe5 {
[%emt 0:00:37]} Rd2 {[%emt 0:00:03]} 34. h4+ {[%emt 0:00:10]} Kf6 {[%emt 0:00:
07]} 35. Ng4+ {[%emt 0:00:07]} Kg6 {[%emt 0:00:02]} 36. h5+ {[%emt 0:00:02]}
1-0

[Event "Championnat de France Universitaire Nan"]
[Site "Nancy, France"]
[Date "2020.02.08"]
[Round "3.7"]
[White "Noir, Mathys"]
[Black "Ginovart, Axel"]
[Result "1-0"]
[WhiteElo "1883"]
[BlackElo "2164"]
[PlyCount "39"]
[EventDate "2020.??.??"]
[TimeControl "15+5"]
[WhiteClock "0:09:59"]
[BlackClock "0:09:00"]

1. e4 {[%emt 0:00:02]} c5 {[%emt 0:00:01]} 2. d4 {[%emt 0:00:05]} cxd4 {[%emt
0:00:03]} 3. c3 {[%emt 0:00:04]} dxc3 {[%emt 0:00:04]} 4. Nxc3 {[%emt 0:00:05]}
d6 {[%emt 0:00:19]} 5. Nf3 {[%emt 0:00:05]} Nc6 {[%emt 0:00:43]} 6. Bc4 {[%emt
0:00:05]} Nf6 {[%emt 0:00:29]} 7. e5 {[%emt 0:00:06]} dxe5 {[%emt 0:01:33]} 8.
Qxd8+ {[%emt 0:00:06]} Nxd8 {[%emt 0:00:11]} 9. Nb5 {[%emt 0:00:05]} Be6 {
[%emt 0:01:22]} 10. Nc7+ {[%emt 0:00:15]} Kd7 {[%emt 0:00:01]} 11. Nxa8 {[%emt
0:00:15]} Bxc4 {[%emt 0:00:02]} 12. Nxe5+ {[%emt 0:00:09]} Kc8 {[%emt 0:00:01]}
13. Nxc4 {[%emt 0:00:23]} Kb8 {[%emt 0:00:01]} 14. Bf4+ {[%emt 0:03:45]} Kxa8 {
[%emt 0:00:02]} 15. O-O-O {[%emt 0:00:01]} Ne6 {[%emt 0:01:04]} 16. Rhe1 {
[%emt 0:00:29]} b5 {[%emt 0:00:52]} 17. Na5 {[%emt 0:00:18]} a6 {[%emt 0:00:49]
} 18. Rxe6 {[%emt 0:00:15]} fxe6 {[%emt 0:00:02]} 19. Rd8+ {[%emt 0:00:12]} Ka7
20. Be3# {[%emt 0:00:11]} 1-0

[Event "Championnat de France Universitaire Nan"]
[Site "Nancy, France"]
[Date "2020.02.08"]
[Round "3.8"]
[White "Leveque, Guillaume"]
[Black "Marchais, Antoine"]
[Result "1-0"]
[WhiteElo "2063"]
[BlackElo "2010"]
[PlyCount "57"]
[EventDate "2020.??.??"]
[TimeControl "15+5"]
[WhiteClock "0:02:25"]
[BlackClock "0:06:53"]

1. e4 {[%emt 0:00:51]} e6 {[%emt 0:00:01]} 2. d4 {[%emt 0:00:02]} d5 {[%emt 0:
00:00]} 3. exd5 {[%emt 0:00:03]} exd5 {[%emt 0:00:01]} 4. Nf3 {[%emt 0:00:03]}
Bd6 {[%emt 0:00:04]} 5. c3 {[%emt 0:00:19]} Nc6 {[%emt 0:00:19]} 6. h3 {[%emt
0:00:10]} Nge7 {[%emt 0:00:02]} 7. Bd3 {[%emt 0:00:04]} Bf5 {[%emt 0:00:06]} 8.
O-O {[%emt 0:00:11]} Qd7 {[%emt 0:00:03]} 9. a4 {[%emt 0:00:44]} f6 {[%emt 0:
00:08]} 10. Re1 {[%emt 0:00:32]} O-O-O {[%emt 0:00:03]} 11. b4 {[%emt 0:00:10]}
h5 {[%emt 0:00:12]} 12. a5 {[%emt 0:00:51]} g5 {[%emt 0:00:04]} 13. b5 {[%emt
0:01:05]} Nb8 {[%emt 0:00:01]} 14. Ba3 {[%emt 0:00:26]} g4 {[%emt 0:00:26]} 15.
Nh4 {[%emt 0:00:19]} Bxd3 {[%emt 0:00:44]} 16. Qxd3 {[%emt 0:00:09]} Rhg8 17.
Bxd6 {[%emt 0:01:25]} Qxd6 {[%emt 0:00:25]} 18. Nd2 {[%emt 0:00:21]} Rg5 {
[%emt 0:01:41]} 19. b6 {[%emt 0:01:30]} cxb6 {[%emt 0:00:03]} 20. axb6 {[%emt
0:00:02]} a6 {[%emt 0:00:58]} 21. c4 {[%emt 0:00:51]} Qd7 {[%emt 0:02:00]} 22.
Rac1 {[%emt 0:02:08]} Nbc6 {[%emt 0:00:04]} 23. cxd5 {[%emt 0:00:22]} Nxd5 {
[%emt 0:00:21]} 24. Ne4 {[%emt 0:00:24]} Ndb4 {[%emt 0:02:09]} 25. Qg3 {[%emt
0:00:52]} gxh3 {[%emt 0:00:11]} 26. Nxg5 {[%emt 0:00:38]} fxg5 {[%emt 0:00:00]}
27. Ng6 {[%emt 0:00:24]} hxg2 {[%emt 0:00:14]} 28. Ne7+ {[%emt 0:00:04]} Qxe7 {
[%emt 0:00:12]} 29. Rxe7 {[%emt 0:00:01]} 1-0

[Event "Championnat de France Universitaire Nan"]
[Site "Nancy, France"]
[Date "2020.02.08"]
[Round "4.1"]
[White "Leveque, Guillaume"]
[Black "Rakotomaharo, Fy Antenaina"]
[Result "0-1"]
[WhiteElo "2063"]
[BlackElo "2430"]
[PlyCount "102"]
[EventDate "2020.??.??"]
[TimeControl "15+5"]
[WhiteClock "0:00:36"]
[BlackClock "0:02:19"]

1. e4 {[%emt 0:00:02]} c5 {[%emt 0:00:02]} 2. Nc3 {[%emt 0:00:03]} d6 {[%emt 0:
00:03]} 3. f4 {[%emt 0:00:02]} g6 {[%emt 0:00:02]} 4. Nf3 {[%emt 0:00:02]} Bg7
{[%emt 0:00:01]} 5. Bc4 {[%emt 0:00:02]} Nc6 {[%emt 0:00:12]} 6. d3 {[%emt 0:
00:02]} e6 {[%emt 0:00:15]} 7. O-O {[%emt 0:00:03]} Nge7 {[%emt 0:00:21]} 8.
Qe1 {[%emt 0:00:03]} Nd4 {[%emt 0:00:07]} 9. Nxd4 {[%emt 0:02:23]} cxd4 {[%emt
0:00:02]} 10. Ne2 {[%emt 0:00:02]} O-O {[%emt 0:00:06]} 11. Bd2 {[%emt 0:01:07]
} d5 {[%emt 0:00:25]} 12. Bb3 {[%emt 0:00:10]} a5 {[%emt 0:00:03]} 13. a4 {
[%emt 0:00:20]} dxe4 {[%emt 0:00:29]} 14. dxe4 {[%emt 0:00:02]} d3 {[%emt 0:00:
02]} 15. Nc3 {[%emt 0:01:43]} Nc6 {[%emt 0:00:54]} 16. Kh1 {[%emt 0:00:56]} Nd4
{[%emt 0:01:06]} 17. Be3 {[%emt 0:02:02]} dxc2 {[%emt 0:00:39]} 18. Bxd4 {
[%emt 0:00:10]} Qxd4 {[%emt 0:00:04]} 19. Bxc2 {[%emt 0:00:07]} Qb4 {[%emt 0:
00:02]} 20. Rb1 {[%emt 0:01:05]} Bd7 {[%emt 0:00:10]} 21. Qg3 {[%emt 0:00:07]}
f5 {[%emt 0:00:31]} 22. exf5 {[%emt 0:00:42]} gxf5 {[%emt 0:00:01]} 23. Rfd1 {
[%emt 0:01:02]} Bc6 {[%emt 0:00:02]} 24. Ne2 {[%emt 0:00:48]} Rf6 {[%emt 0:00:
22]} 25. Nd4 {[%emt 0:00:51]} Bxa4 {[%emt 0:02:24]} 26. Bxa4 {[%emt 0:00:40]}
Qxa4 {[%emt 0:00:01]} 27. b3 {[%emt 0:00:22]} Qb4 {[%emt 0:00:13]} 28. Qe3 {
[%emt 0:00:25]} Qb6 {[%emt 0:00:52]} 29. Rbc1 {[%emt 0:00:12]} Rd8 {[%emt 0:01:
03]} 30. h3 {[%emt 0:00:36]} Rf7 {[%emt 0:01:47]} 31. Nxf5 {[%emt 0:00:34]}
Rxd1+ {[%emt 0:00:02]} 32. Rxd1 {[%emt 0:00:02]} Qxe3 {[%emt 0:00:02]} 33. Nxe3
{[%emt 0:00:01]} Rxf4 {[%emt 0:00:03]} 34. Rd8+ {[%emt 0:00:05]} Rf8 {[%emt 0:
00:54]} 35. Rd7 {[%emt 0:00:05]} Rf7 {[%emt 0:00:02]} 36. Rd8+ {[%emt 0:00:06]}
Bf8 {[%emt 0:01:10]} 37. Nc4 {[%emt 0:00:01]} Kg7 {[%emt 0:00:45]} 38. Nxa5 {
[%emt 0:00:08]} Rc7 {[%emt 0:00:01]} 39. Kh2 {[%emt 0:00:25]} Be7 {[%emt 0:00:
44]} 40. Rd3 {[%emt 0:00:05]} b5 {[%emt 0:00:06]} 41. Kg3 {[%emt 0:00:14]} Bb4
{[%emt 0:00:05]} 42. Re3 {[%emt 0:00:26]} Bxa5 {[%emt 0:00:04]} 43. Rxe6 {
[%emt 0:00:01]} Rc3+ {[%emt 0:00:02]} 44. Kf4 {[%emt 0:00:03]} Rxb3 {[%emt 0:
00:01]} 45. g4 {[%emt 0:00:02]} Rxh3 {[%emt 0:00:08]} 46. Ra6 {[%emt 0:00:06]}
Bd2+ {[%emt 0:00:14]} 47. Kf5 {[%emt 0:00:04]} Rf3+ {[%emt 0:00:01]} 48. Ke4 {
[%emt 0:00:01]} Rf4+ {[%emt 0:00:05]} 49. Kd3 {[%emt 0:00:01]} Be1 {[%emt 0:00:
07]} 50. Rb6 {[%emt 0:00:06]} b4 {[%emt 0:00:02]} 51. g5 {[%emt 0:00:01]} Bc3 {
[%emt 0:00:03]} 0-1

[Event "Championnat de France Universitaire Nan"]
[Site "Nancy, France"]
[Date "2020.02.08"]
[Round "4.2"]
[White "Msellek, Ilyass"]
[Black "Pak, Alexander"]
[Result "1-0"]
[WhiteElo "2261"]
[BlackElo "2183"]
[PlyCount "63"]
[EventDate "2020.??.??"]
[TimeControl "15+5"]
[WhiteClock "0:07:11"]
[BlackClock "0:06:30"]

1. e4 {[%emt 0:00:02]} c5 {[%emt 0:00:02]} 2. Nf3 {[%emt 0:00:01]} d6 {[%emt 0:
00:01]} 3. Bb5+ {[%emt 0:00:23]} Bd7 {[%emt 0:00:05]} 4. Bxd7+ {[%emt 0:00:01]}
Qxd7 {[%emt 0:00:02]} 5. O-O {[%emt 0:00:02]} Nf6 {[%emt 0:00:06]} 6. Re1 {
[%emt 0:00:00]} Nc6 {[%emt 0:00:07]} 7. c3 {[%emt 0:00:02]} e5 {[%emt 0:01:07]}
8. d4 {[%emt 0:00:06]} cxd4 {[%emt 0:00:03]} 9. cxd4 {[%emt 0:00:01]} exd4 {
[%emt 0:00:04]} 10. Nxd4 {[%emt 0:00:08]} Nxd4 {[%emt 0:00:37]} 11. Qxd4 {
[%emt 0:00:02]} Be7 {[%emt 0:00:10]} 12. Nc3 {[%emt 0:00:17]} O-O {[%emt 0:00:
05]} 13. b3 {[%emt 0:00:31]} Bd8 {[%emt 0:00:48]} 14. Bb2 {[%emt 0:01:38]} Bb6
{[%emt 0:00:06]} 15. Qd2 {[%emt 0:00:20]} Rad8 {[%emt 0:01:28]} 16. Na4 {[%emt
0:00:19]} Ne8 {[%emt 0:02:13]} 17. Nxb6 {[%emt 0:00:16]} axb6 {[%emt 0:00:01]}
18. Qd4 {[%emt 0:00:15]} Qb5 {[%emt 0:00:48]} 19. Re3 {[%emt 0:00:12]} f6 {
[%emt 0:00:22]} 20. a4 {[%emt 0:03:00]} Qa6 {[%emt 0:00:38]} 21. Qd5+ {[%emt 0:
00:42]} Kh8 {[%emt 0:00:06]} 22. Qh5 {[%emt 0:00:39]} Nc7 {[%emt 0:00:35]} 23.
Rh3 {[%emt 0:00:07]} h6 {[%emt 0:00:03]} 24. Qg6 {[%emt 0:00:01]} Qe2 {[%emt 0:
00:54]} 25. Rxh6+ {[%emt 0:00:20]} gxh6 {[%emt 0:00:02]} 26. Bxf6+ {[%emt 0:00:
02]} Rxf6 {[%emt 0:00:08]} 27. Qxf6+ {[%emt 0:00:00]} Kh7 {[%emt 0:00:04]} 28.
Qe7+ {[%emt 0:00:11]} Kg6 {[%emt 0:00:07]} 29. Qxd8 {[%emt 0:00:02]} Ne6 {
[%emt 0:00:09]} 30. Qxd6 {[%emt 0:00:12]} Qxe4 {[%emt 0:00:09]} 31. Qxb6 {
[%emt 0:00:31]} Kf7 {[%emt 0:00:05]} 32. Qe3 {[%emt 0:00:05]} 1-0

[Event "Championnat de France Universitaire Nan"]
[Site "Nancy, France"]
[Date "2020.02.08"]
[Round "4.3"]
[White "Daeschler, Florian"]
[Black "Noir, Mathys"]
[Result "1/2-1/2"]
[WhiteElo "2327"]
[BlackElo "1883"]
[PlyCount "128"]
[EventDate "2020.??.??"]
[TimeControl "15+5"]
[WhiteClock "0:00:11"]
[BlackClock "0:00:08"]

1. d4 {[%emt 0:00:00]} Nf6 {[%emt 0:00:04]} 2. c4 {[%emt 0:00:01]} g6 {[%emt 0:
00:06]} 3. g3 {[%emt 0:00:01]} Bg7 {[%emt 0:00:05]} 4. Bg2 {[%emt 0:00:01]} d6
{[%emt 0:00:06]} 5. Nc3 {[%emt 0:00:05]} O-O {[%emt 0:00:07]} 6. Nf3 {[%emt 0:
00:02]} Nbd7 {[%emt 0:00:21]} 7. O-O {[%emt 0:00:02]} e5 {[%emt 0:00:09]} 8. e4
{[%emt 0:00:03]} Qe7 {[%emt 0:00:28]} 9. h3 {[%emt 0:00:14]} h6 {[%emt 0:01:29]
} 10. Be3 {[%emt 0:00:13]} Kh7 {[%emt 0:00:56]} 11. Qc2 {[%emt 0:00:37]} Rg8 {
[%emt 0:00:34]} 12. Rad1 {[%emt 0:00:24]} Nf8 {[%emt 0:00:39]} 13. b4 {[%emt 0:
00:53]} Be6 {[%emt 0:01:18]} 14. dxe5 {[%emt 0:00:53]} dxe5 {[%emt 0:00:16]}
15. Bc5 {[%emt 0:00:27]} Qe8 {[%emt 0:00:24]} 16. Nb5 {[%emt 0:00:07]} b6 {
[%emt 0:02:14]} 17. Nxc7 {[%emt 0:00:09]} Qc6 {[%emt 0:00:04]} 18. Bxf8 {[%emt
0:00:11]} Raxf8 {[%emt 0:00:19]} 19. Nxe6 {[%emt 0:00:19]} Qxe6 {[%emt 0:00:03]
} 20. Nd2 {[%emt 0:01:04]} Rc8 {[%emt 0:00:11]} 21. Rc1 {[%emt 0:00:04]} Rgd8 {
[%emt 0:00:08]} 22. Nb3 {[%emt 0:00:04]} Bf8 {[%emt 0:00:07]} 23. a3 {[%emt 0:
00:20]} a5 {[%emt 0:00:09]} 24. Qc3 {[%emt 0:00:37]} Rd7 {[%emt 0:01:14]} 25.
Rc2 {[%emt 0:01:28]} Rcd8 {[%emt 0:01:23]} 26. Rd2 {[%emt 0:00:23]} a4 {[%emt
0:00:23]} 27. Rxd7 {[%emt 0:00:05]} Qxd7 {[%emt 0:00:04]} 28. Nc1 {[%emt 0:00:
17]} Qd4 {[%emt 0:00:11]} 29. Qc2 {[%emt 0:00:10]} Rc8 {[%emt 0:00:39]} 30.
Qxa4 {[%emt 0:00:39]} Qxc4 {[%emt 0:00:25]} 31. Qb3 {[%emt 0:01:04]} Qxb3 {
[%emt 0:01:09]} 32. Nxb3 {[%emt 0:00:00]} Rc3 {[%emt 0:00:01]} 33. Rb1 {[%emt
0:00:00]} b5 {[%emt 0:00:21]} 34. Kf1 {[%emt 0:00:21]} Be7 {[%emt 0:01:07]} 35.
Ke1 {[%emt 0:00:04]} Rc2 {[%emt 0:00:12]} 36. Nd2 {[%emt 0:01:01]} Bd8 {[%emt
0:00:13]} 37. Bf1 {[%emt 0:00:30]} Bb6 {[%emt 0:00:06]} 38. Bxb5 {[%emt 0:00:
25]} Bxf2+ {[%emt 0:00:02]} 39. Kd1 {[%emt 0:00:00]} Ra2 {[%emt 0:00:11]} 40.
Rb3 {[%emt 0:00:02]} Ra1+ {[%emt 0:00:07]} 41. Ke2 {[%emt 0:00:06]} Be1 {[%emt
0:00:08]} 42. Bd3 {[%emt 0:01:19]} Bxg3 {[%emt 0:00:10]} 43. Bb1 {[%emt 0:00:
29]} Bf4 {[%emt 0:00:02]} 44. b5 {[%emt 0:00:05]} Nd7 {[%emt 0:00:10]} 45. b6 {
[%emt 0:00:45]} Nxb6 {[%emt 0:00:01]} 46. Rxb6 {[%emt 0:00:02]} Rxa3 {[%emt 0:
00:01]} 47. Rb3 {[%emt 0:00:07]} Ra6 {[%emt 0:00:09]} 48. Nf3 {[%emt 0:00:15]}
Rc6 {[%emt 0:00:10]} 49. Rb7 {[%emt 0:00:06]} Kg7 {[%emt 0:00:04]} 50. Ne1 {
[%emt 0:00:24]} g5 {[%emt 0:00:12]} 51. Ba2 {[%emt 0:00:05]} Rf6 {[%emt 0:00:
02]} 52. Nd3 {[%emt 0:00:14]} h5 {[%emt 0:00:04]} 53. Nb4 {[%emt 0:00:14]} g4 {
[%emt 0:00:06]} 54. hxg4 {[%emt 0:00:05]} hxg4 {[%emt 0:00:05]} 55. Nd5 {[%emt
0:00:01]} Ra6 {[%emt 0:00:03]} 56. Bc4 {[%emt 0:00:35]} Ra4 {[%emt 0:00:03]}
57. Nb6 {[%emt 0:00:32]} Rb4 {[%emt 0:00:11]} 58. Rxf7+ {[%emt 0:00:15]} Kg6 {
[%emt 0:00:06]} 59. Rf6+ {[%emt 0:00:17]} Kg5 {[%emt 0:00:10]} 60. Rc6 {[%emt
0:00:04]} Rb2+ {[%emt 0:00:02]} 61. Kf1 {[%emt 0:00:10]} Be3 {[%emt 0:00:08]}
62. Nd5 {[%emt 0:00:04]} Bd4 {[%emt 0:00:03]} 63. Rc7 {[%emt 0:00:09]} g3 {
[%emt 0:00:07]} 64. Rg7+ {[%emt 0:00:26]} Kh5 {[%emt 0:02:33]} 1/2-1/2

[Event "Championnat de France Universitaire Nan"]
[Site "Nancy, France"]
[Date "2020.02.08"]
[Round "4.4"]
[White "Albaric, Etienne"]
[Black "Defromont, Benjamin"]
[Result "1-0"]
[WhiteElo "2258"]
[BlackElo "2263"]
[PlyCount "97"]
[EventDate "2020.??.??"]
[TimeControl "15+5"]
[WhiteClock "0:00:35"]
[BlackClock "0:00:22"]

1. e4 {[%emt 0:00:02]} e5 {[%emt 0:00:05]} 2. Bc4 {[%emt 0:00:04]} Nc6 {[%emt
0:01:02]} 3. Nf3 {[%emt 0:00:10]} g6 {[%emt 0:00:07]} 4. d4 {[%emt 0:00:23]}
exd4 {[%emt 0:00:04]} 5. Bg5 {[%emt 0:00:50]} Be7 {[%emt 0:00:06]} 6. h4 {
[%emt 0:01:39]} h6 {[%emt 0:01:55]} 7. Bf4 {[%emt 0:00:18]} Bc5 {[%emt 0:01:31]
} 8. c3 {[%emt 0:03:55]} Nf6 {[%emt 0:06:51]} 9. cxd4 {[%emt 0:02:07]} Bb4+ {
[%emt 0:00:01]} 10. Nc3 {[%emt 0:00:49]} Nxe4 {[%emt 0:01:09]} 11. O-O {[%emt
0:00:29]} Bxc3 {[%emt 0:00:35]} 12. bxc3 {[%emt 0:00:11]} d5 {[%emt 0:00:06]}
13. Re1 {[%emt 0:01:22]} O-O {[%emt 0:00:35]} 14. Bxh6 {[%emt 0:00:43]} Re8 {
[%emt 0:00:07]} 15. Bd3 {[%emt 0:00:42]} Bg4 {[%emt 0:00:22]} 16. Qc1 {[%emt 0:
00:01]} Qd7 {[%emt 0:01:01]} 17. Bxe4 {[%emt 0:00:53]} Rxe4 {[%emt 0:00:31]}
18. Rxe4 {[%emt 0:00:50]} dxe4 {[%emt 0:00:01]} 19. Nh2 {[%emt 0:00:01]} Qf5 {
[%emt 0:00:24]} 20. Qe3 {[%emt 0:00:08]} Bh5 {[%emt 0:00:05]} 21. Re1 {[%emt 0:
00:11]} Re8 {[%emt 0:00:07]} 22. f3 {[%emt 0:00:01]} Qa5 {[%emt 0:00:05]} 23.
Qf4 {[%emt 0:00:22]} Qf5 {[%emt 0:00:04]} 24. g4 {[%emt 0:00:14]} Qxf4 {[%emt
0:00:01]} 25. Bxf4 {[%emt 0:00:01]} g5 {[%emt 0:00:03]} 26. Bxg5 {[%emt 0:00:
16]} Bg6 {[%emt 0:00:01]} 27. h5 {[%emt 0:00:12]} Bh7 {[%emt 0:00:00]} 28. f4 {
[%emt 0:00:01]} Na5 {[%emt 0:00:03]} 29. Nf3 {[%emt 0:00:09]} Nc4 {[%emt 0:00:
21]} 30. Ne5 {[%emt 0:00:01]} Nxe5 {[%emt 0:00:06]} 31. dxe5 {[%emt 0:00:03]}
Kg7 {[%emt 0:00:06]} 32. Bf6+ {[%emt 0:00:05]} Kf8 {[%emt 0:00:02]} 33. f5 {
[%emt 0:00:04]} Rc8 {[%emt 0:00:06]} 34. Rxe4 {[%emt 0:00:02]} Ke8 {[%emt 0:00:
02]} 35. e6 {[%emt 0:00:07]} fxe6 {[%emt 0:00:04]} 36. Rxe6+ {[%emt 0:00:01]}
Kf7 {[%emt 0:00:03]} 37. Re7+ {[%emt 0:00:05]} Kxf6 {[%emt 0:00:02]} 38. Rxh7 {
[%emt 0:00:01]} Rg8 {[%emt 0:00:03]} 39. Rh6+ {[%emt 0:00:08]} Ke5 {[%emt 0:00:
10]} 40. Rg6 {[%emt 0:00:02]} Rd8 {[%emt 0:00:01]} 41. Kf2 {[%emt 0:00:23]} Kf4
{[%emt 0:00:02]} 42. Ke2 {[%emt 0:00:01]} Ke4 {[%emt 0:00:06]} 43. h6 {[%emt 0:
00:04]} Kf4 {[%emt 0:00:06]} 44. h7 {[%emt 0:00:04]} Re8+ {[%emt 0:00:03]} 45.
Kf2 {[%emt 0:00:02]} Rd8 {[%emt 0:00:14]} 46. Rg8 {[%emt 0:00:10]} Rd2+ {[%emt
0:00:01]} 47. Ke1 {[%emt 0:00:01]} Rxa2 {[%emt 0:00:02]} 48. h8=Q {[%emt 0:00:
05]} Ke3 {[%emt 0:00:02]} 49. Qh3+ {[%emt 0:00:02]} 1-0

[Event "Championnat de France Universitaire Nan"]
[Site "Nancy, France"]
[Date "2020.02.08"]
[Round "4.5"]
[White "Porsia, Enzo"]
[Black "Budak, Rewi"]
[Result "0-1"]
[WhiteElo "1752"]
[BlackElo "2079"]
[PlyCount "62"]
[EventDate "2020.??.??"]
[TimeControl "15+5"]
[WhiteClock "0:01:24"]
[BlackClock "0:01:08"]

1. e4 {[%emt 0:00:01]} c5 {[%emt 0:00:01]} 2. Nf3 {[%emt 0:00:01]} Nc6 {[%emt
0:00:02]} 3. Bb5 {[%emt 0:00:00]} Nf6 {[%emt 0:00:32]} 4. Nc3 {[%emt 0:00:03]}
Nd4 {[%emt 0:00:05]} 5. e5 {[%emt 0:01:18]} Nxb5 {[%emt 0:00:35]} 6. Nxb5 {
[%emt 0:00:39]} Nd5 {[%emt 0:00:21]} 7. O-O {[%emt 0:00:30]} a6 {[%emt 0:02:16]
} 8. Nc3 {[%emt 0:00:04]} Nxc3 {[%emt 0:00:47]} 9. bxc3 {[%emt 0:00:02]} g6 {
[%emt 0:00:05]} 10. d4 {[%emt 0:00:03]} cxd4 {[%emt 0:00:01]} 11. cxd4 {[%emt
0:00:01]} Bg7 {[%emt 0:00:01]} 12. Bb2 {[%emt 0:01:47]} O-O {[%emt 0:00:28]}
13. c4 {[%emt 0:00:12]} b5 {[%emt 0:00:03]} 14. cxb5 {[%emt 0:00:21]} axb5 {
[%emt 0:00:01]} 15. d5 {[%emt 0:00:10]} d6 {[%emt 0:01:48]} 16. Qb3 {[%emt 0:
00:20]} Bg4 {[%emt 0:01:09]} 17. exd6 {[%emt 0:00:38]} Qxd6 {[%emt 0:01:36]}
18. Bxg7 {[%emt 0:00:14]} Kxg7 {[%emt 0:00:03]} 19. Qxb5 {[%emt 0:01:58]} Bxf3
{[%emt 0:00:12]} 20. gxf3 {[%emt 0:00:01]} Rfb8 {[%emt 0:01:16]} 21. Qd3 {
[%emt 0:01:05]} Rb4 {[%emt 0:01:31]} 22. Kg2 {[%emt 0:02:54]} Rh4 {[%emt 0:00:
20]} 23. Qc3+ {[%emt 0:01:27]} f6 {[%emt 0:00:24]} 24. Rh1 {[%emt 0:00:00]} Ra3
{[%emt 0:00:03]} 25. Qe1 {[%emt 0:00:10]} Rh5 {[%emt 0:01:28]} 26. f4 {[%emt 0:
01:21]} Qxd5+ {[%emt 0:00:02]} 27. Kg1 {[%emt 0:00:09]} Qd7 {[%emt 0:00:26]}
28. Rd1 {[%emt 0:00:08]} Qg4+ {[%emt 0:00:25]} 29. Kf1 {[%emt 0:00:01]} Qh3+ {
[%emt 0:00:02]} 30. Kg1 {[%emt 0:00:14]} Kh6 {[%emt 0:00:28]} 31. Qxe7 {[%emt
0:00:24]} Qg4+ {[%emt 0:00:01]} 0-1